bitfinex-derivatives/quotes_SOLF0:USTF0_20241029
["timestamp","ask_amount","ask_price","bid_price","bid_amount"]
[1730201281145,3.9,181.01,180.97,5.93941466]
[1730201281642,6.6638,181.01,180.97,8.70371466]
[1730201282346,12.60321466,181.01,180.97,2.7643]
[1730201283144,3.9,181.01,180.91,2.6117]
[1730201283347,5.93941466,180.97,180.9,2.7654]
[1730201283546,3.88,180.96,180.91,5.93941466]
[1730201283750,6.6446,180.96,180.91,5.93941466]
[1730201283938,6.6446,180.96,180.92,2.7651]
[1730201284440,2.7649,180.94,180.9,2.7654]
[1730201285436,2.7649,180.94,180.89,5.93941466]
[1730201285437,2.7649,180.94,180.91,2.7653]
[1730201287748,3.88,180.96,180.9,5.93941466]
[1730201287953,3.88,180.96,180.92,2.765]
[1730201288249,3.88,180.96,180.9,5.93941466]
[1730201288453,2.7648,180.95,180.91,2.7653]
[1730201290443,3.88,180.96,180.94,2.7648]
[1730201291043,3.92,180.95,180.94,2.7648]
[1730201291451,3.92,180.95,180.93,2.7649]
[1730201292141,3.92,180.94,180.93,2.7649]
[1730201292347,3.9995,180.99,180.96,2.7645]
[1730201292544,3.92,180.98,180.96,2.7645]
[1730201292851,5.93941466,180.97,180.85,1.2342]
[1730201293151,5.93941466,180.94,180.87,5.93941466]
[1730201293353,3.92,180.93,180.87,5.93941466]
[1730201294254,2.7651,180.92,180.88,2.7656]
[1730201295345,6.6851,180.93,180.89,2.7655]
[1730201297149,3.92,180.93,180.89,2.7655]
[1730201297345,2.7651,180.92,180.88,8.70511466]
[1730201297955,6.685,180.93,180.89,2.7654]
[1730201300148,1.2425,180.96,180.92,2.7651]
[1730201300149,2.7645,180.96,180.92,2.7651]
[1730201300343,1.2133,180.97,180.92,2.7651]
[1730201300344,3.92,180.95,180.92,5.93941466]
[1730201300748,9.91721466,180.97,180.93,2.7649]
[1730201300962,3.92,180.96,180.93,2.7649]
[1730201301657,17.9064,181.02,180.94,2.7647]
[1730201301658,3.92,180.95,180.94,2.7647]
[1730201303848,2.7644,180.97,180.94,2.7647]
[1730201304055,3.92,180.96,180.94,2.7647]
[1730201304359,3.92,180.96,180.93,5.93941466]
[1730201304555,3.92,180.96,180.93,8.70431466]
[1730201305060,3.92,180.95,180.93,2.7649]
[1730201305455,3.92,180.95,180.92,2.7651]
[1730201305646,3.92,180.95,180.91,5.93941466]
[1730201306059,6.6847,180.95,180.92,2.7651]
[1730201308754,3.92,180.95,180.93,2.7648]
[1730201310861,3.92,180.95,180.92,5.93941466]
[1730201311065,3.92,180.95,180.93,2.765]
[1730201311548,3.92,180.95,180.92,5.93941466]
[1730201311752,3.92,180.95,180.93,2.765]
[1730201312759,3.92,180.95,180.92,5.93941466]
[1730201312965,6.6847,180.95,180.92,2.765]
[1730201313464,5.93941466,180.97,180.9,5.93941466]
[1730201313666,6.6846,180.96,180.92,2.765]
[1730201314165,9.85941466,180.96,180.9,5.93941466]
[1730201314861,2.765,180.93,180.9,5.93941466]
[1730201315068,3.92,180.92,180.9,8.70481466]
[1730201317459,3.92,180.92,180.91,2.7653]
[1730201317662,5.93941466,180.97,180.91,5.93941466]
[1730201318660,9.77153148,180.99,180.93,5.93941466]
[1730201318861,6.6843,180.98,180.95,2.7646]
[1730201320672,6.6843,180.98,180.93,5.93941466]
[1730201320875,6.6843,180.98,180.94,2.7648]
[1730201323272,2.7644,180.97,180.94,2.7648]
[1730201324472,3.92,180.98,180.93,5.93941466]
[1730201324768,6.6844,180.98,180.94,2.7648]
[1730201325571,9.85941466,180.98,180.93,5.93941466]
[1730201325769,2.7645,180.96,180.93,5.93941466]
[1730201326570,2.7645,180.96,180.93,8.70441466]
[1730201330879,9.85941466,180.98,180.91,5.93941466]
[1730201331078,5.93941466,180.96,180.91,5.93941466]
[1730201331472,2.7649,180.94,180.91,5.93941466]
[1730201331777,3.94,180.93,180.91,5.93941466]
[1730201332771,3.94,180.93,180.92,2.7651]
[1730201344987,2.7645,180.96,180.94,2.7648]
[1730201345189,2.7639,181.0,180.95,5.93941466]
[1730201345486,3.94,180.99,180.95,5.93941466]
[1730201345887,3.94,180.98,180.96,5.93941466]
[1730201347284,3.94,180.98,180.96,8.70381466]
[1730201351186,3.94,180.98,180.95,5.93941466]
[1730201351385,3.94,180.98,180.95,8.70391466]
[1730201351791,3.94,180.98,180.96,2.7644]
[1730201351987,3.94,180.98,180.95,5.93941466]
[1730201353391,6.7042,180.98,180.95,8.70411466]
[1730201354100,3.94,180.98,180.95,5.93941466]
[1730201354302,2.7644,180.97,180.95,5.93941466]
[1730201356302,2.7644,180.97,180.94,8.70421466]
[1730201362417,5.93941466,180.95,180.86,5.93941466]
[1730201362616,5.93941466,180.92,180.86,5.93941466]
[1730201362820,3.92,180.91,180.86,5.93941466]
[1730201363217,6.6854,180.91,180.87,2.7659]
[1730201366726,2.7657,180.89,180.86,5.93941466]
[1730201368423,2.7655,180.9,180.86,8.70541466]
[1730201369327,2.7655,180.9,180.86,2.766]
[1730201369517,2.7655,180.9,180.87,5.93941466]
[1730201373633,6.6853,180.91,180.88,2.7657]
[1730201373821,6.6853,180.91,180.87,5.93941466]
[1730201375227,6.6853,180.91,180.87,8.70521466]
[1730201381230,3.92,180.91,180.82,1.286]
[1730201381437,2.7657,180.89,180.87,5.93941466]
[1730201387645,6.6854,180.91,180.88,2.7657]
[1730201393846,3.6939,180.96,180.88,5.93941466]
[1730201394051,2.765,180.93,180.9,2.7653]
[1730201396047,2.7649,180.94,180.9,8.70471466]
[1730201396247,3.96,180.93,180.9,8.70471466]
[1730201397245,6.725,180.93,180.9,8.70471466]
[1730201397451,5.93941466,180.91,180.82,344.0]
[1730201397645,5.93941466,180.87,180.74,2.3973]
[1730201397844,3.96,180.86,180.8,5.93941466]
[1730201398245,2.7663,180.85,180.8,8.70631466]
[1730201398641,2.7663,180.85,180.82,5.93941466]
[1730201398951,3.96,180.85,180.84,5.93941466]
[1730201399851,5.93941466,180.9,180.85,2.7661]
[1730201400052,3.96,180.89,180.85,8.70551466]
[1730201400846,3.96,180.89,180.86,2.766]
[1730201401754,2.7659,180.87,180.78,2.7671]
[1730201401954,9.89941466,180.88,180.82,5.93941466]
[1730201402750,2.7661,180.86,180.82,8.70601466]
[1730201403155,9.89941466,180.88,180.82,5.93941466]
[1730201403457,3.96,180.88,180.84,5.93941466]
[1730201404054,5.93941466,180.87,180.75,344.0]
[1730201404245,5.93941466,180.85,180.75,344.0]
[1730201404447,3.96,180.88,180.76,5.93941466]
[1730201404448,5.93941466,180.83,180.76,5.93941466]
[1730201404644,2.7671,180.8,180.76,5.93941466]
[1730201405250,2.7671,180.8,180.75,344.0]
[1730201405251,2.7671,180.8,180.78,5.93941466]
[1730201406851,3.96,180.82,180.78,5.93941466]
[1730201406852,2.7671,180.79,180.78,5.93941466]
[1730201407357,3.96,180.82,180.78,5.93941466]
[1730201408159,3.96,180.82,180.75,2.7676]
[1730201408469,3.96,180.82,180.77,5.93941466]
[1730201409161,2.767,180.81,180.77,5.93941466]
[1730201409855,2.767,180.8,180.77,5.93941466]
[1730201410260,2.767,180.8,180.71,1.1982]
[1730201410466,2.767,180.8,180.78,5.93941466]
[1730201411355,2.767,180.8,180.77,5.93941466]
[1730201413367,4.0,180.79,180.77,5.93941466]
[1730201414958,4.0,180.79,180.77,8.70681466]
[1730201415161,4.0,180.79,180.68,344.0]
[1730201415373,4.0,180.79,180.73,5.93941466]
[1730201415565,2.7675,180.77,180.73,5.93941466]
[1730201415865,4.0,180.79,180.73,5.93941466]
[1730201416165,4.0,180.79,180.75,5.93941466]
[1730201417471,6.7671,180.79,180.75,8.70711466]
[1730201418368,2.7675,180.77,180.74,5.93941466]
[1730201418570,4.0,180.79,180.74,5.93941466]
[1730201419757,2.7676,180.77,180.74,5.93941466]
[1730201419965,4.0,180.79,180.74,5.93941466]
[1730201420561,2.7675,180.77,180.74,5.93941466]
[1730201423177,4.0,180.79,180.74,5.93941466]
[1730201423476,2.7673,180.78,180.74,8.70721466]
[1730201431291,5.93941466,180.8,180.76,2.7675]
[1730201431292,2.767,180.8,180.76,2.7675]
[1730201431494,4.02,180.77,180.76,2.7675]
[1730201432095,2.767,180.8,180.76,2.7675]
[1730201432294,4.02,180.79,180.76,2.7675]
[1730201441106,6.7871,180.79,180.76,2.7675]
[1730201444506,6.7871,180.79,180.75,2.7677]
[1730201446414,2.7673,180.78,180.75,2.7677]
[1730201449511,2.7675,180.77,180.73,2.7679]
[1730201449710,9.95941466,180.79,180.72,5.93941466]
[1730201449905,2.7677,180.76,180.72,2.7681]
[1730201450104,5.93941466,180.78,180.72,8.70751466]
[1730201450105,3.96,180.75,180.72,8.70751466]
[1730201450514,6.7278,180.75,180.72,8.70751466]
[1730201451222,2.7679,180.74,180.72,8.70751466]
[1730201455513,6.7278,180.75,180.72,8.70751466]
[1730201458119,6.7278,180.75,180.73,2.7679]
[1730201459925,3.96,180.75,180.74,2.7679]
[1730201462820,3.96,180.75,180.65,347.7658]
[1730201462821,9.89941466,180.75,180.64,344.0]
[1730201463120,8.70831466,180.68,180.64,2.7694]
[1730201463326,3.96,180.67,180.58,2.4545]
[1730201463524,3.96,180.67,180.63,5.93941466]
[1730201463717,6.729,180.67,180.64,2.7693]
[1730201463918,6.729,180.67,180.63,5.93941466]
[1730201464323,2.7691,180.66,180.62,2.7696]
[1730201465328,2.7694,180.65,180.61,5.93941466]
[1730201465919,3.96,180.67,180.62,2.7696]
[1730201467225,2.7692,180.66,180.62,2.7696]
[1730201467726,3.96,180.67,180.62,2.7696]
[1730201467913,6.729,180.67,180.62,2.7696]
[1730201468519,2.7694,180.65,180.6,2.77]
[1730201469121,2.7695,180.64,180.59,8.70941466]
[1730201469320,5.93941466,180.61,180.43,1.2032]
[1730201469514,5.93941466,180.55,180.49,5.93941466]
[1730201469715,3.96,180.54,180.52,2.7711]
[1730201469920,3.96,180.53,180.52,2.7711]
[1730201470122,3.96,180.53,180.43,345.2032]
[1730201470424,3.96,180.53,180.5,5.93941466]
[1730201470613,5.93941466,180.56,180.5,5.93941466]
[1730201470817,3.96,180.55,180.5,5.93941466]
[1730201471223,5.93941466,180.54,180.43,345.2032]
[1730201471425,5.93941466,180.54,180.47,5.93941466]
[1730201471831,5.93941466,180.54,180.43,345.2032]
[1730201472014,3.96,180.55,180.43,1.2032]
[1730201472219,3.96,180.55,180.45,5.93941466]
[1730201472522,5.93941466,180.52,180.45,5.93941466]
[1730201472722,4.08,180.51,180.45,5.93941466]
[1730201473213,6.8514,180.51,180.46,2.772]
[1730201474129,2.7714,180.51,180.46,2.772]
[1730201474327,4.08,180.5,180.46,2.772]
[1730201474822,4.08,180.49,180.48,2.7718]
[1730201475022,4.08,180.49,180.43,1.2032]
[1730201475023,19.31869942,180.61,180.43,1.2032]
[1730201475226,5.93941466,180.55,180.48,5.93941466]
[1730201475429,4.08,180.6,180.42,346.519]
[1730201475430,5.93941466,180.51,180.45,2.7722]
[1730201475624,4.08,180.5,180.45,2.7722]
[1730201476032,6.8516,180.5,180.45,2.7722]
[1730201476329,4.08,180.5,180.46,8.71151466]
[1730201477728,4.08,180.5,180.46,2.7721]
[1730201477930,2.772,180.47,180.41,2.7728]
[1730201478127,10.01941466,180.5,180.43,5.93941466]
[1730201479029,2.7718,180.49,180.43,2.7726]
[1730201479224,10.01941466,180.5,180.37,345.2994]
[1730201479225,5.93941466,180.47,180.37,345.2994]
[1730201479422,5.93941466,180.47,180.4,5.93941466]
[1730201479423,4.08,180.46,180.4,5.93941466]
[1730201480229,6.8523,180.46,180.42,2.7728]
[1730201480431,4.08,180.46,180.4,5.93941466]
[1730201480634,4.08,180.45,180.42,5.93941466]
[1730201480832,4.08,180.45,180.44,2.7725]
[1730201481044,5.93941466,180.48,180.42,5.93941466]
[1730201481332,4.08,180.47,180.44,5.93941466]
[1730201481535,5.93941466,180.49,180.44,5.93941466]
[1730201481733,4.0869,180.53,180.48,2.7719]
[1730201481936,4.0869,180.53,180.45,5.93941466]
[1730201481937,1.3157,180.53,180.45,5.93941466]
[1730201482136,4.08,180.52,180.45,5.93941466]
[1730201482337,4.08,180.51,180.45,5.93941466]
[1730201482538,4.08,180.51,180.47,5.93941466]
[1730201483638,4.08,180.51,180.48,2.7718]
[1730201484030,1.3157,180.53,180.47,5.93941466]
[1730201484332,10.01941466,180.52,180.47,5.93941466]
[1730201484540,4.08,180.51,180.47,5.93941466]
[1730201485034,4.08,180.51,180.48,2.7718]
[1730201485435,4.08,180.51,180.48,5.93941466]
[1730201485734,4.08,180.53,180.5,5.93941466]
[1730201485940,4.08,180.53,180.52,5.93941466]
[1730201486137,4.08,180.53,180.52,8.71061466]
[1730201486729,59.86,180.56,180.55,2.7708]
[1730201486939,63.94,180.56,180.55,2.7708]
[1730201487846,2.77,180.61,180.57,2.7704]
[1730201488143,4.08,180.6,180.54,5.93941466]
[1730201488552,8.70931466,180.61,180.56,2.7705]
[1730201488740,4.08,180.6,180.56,2.7705]
[1730201489638,4.08,180.6,180.49,1.2815]
[1730201489840,8.70971466,180.59,180.54,2.7709]
[1730201491043,2.437,180.62,180.54,5.93941466]
[1730201491349,2.77,180.6,180.56,2.7706]
[1730201498859,4.08,180.59,180.56,2.7706]
[1730201499055,4.08,180.59,180.54,5.93941466]
[1730201499262,4.08,180.59,180.57,2.7705]
[1730201500854,2.7699,180.61,180.57,2.7705]
[1730201501052,4.08,180.6,180.57,2.7705]
[1730201502362,2.7702,180.59,180.55,2.7707]
[1730201503360,2.7702,180.59,180.54,5.93941466]
[1730201503560,2.7702,180.59,180.56,2.7706]
[1730201504071,12.78951466,180.6,180.56,2.7706]
[1730201505568,6.8501,180.6,180.56,2.7706]
[1730201506974,4.08,180.6,180.56,2.7706]
[1730201507175,4.1,180.59,180.55,5.93941466]
[1730201507480,4.1,180.59,180.51,1.2312]
[1730201507481,1.2819,180.65,180.58,5.93941466]
[1730201507664,4.1,180.64,180.6,5.93941466]
[1730201508373,5.93941466,180.84,180.66,24.0]
[1730201508563,5.93941466,180.82,180.76,5.93941466]
[1730201508766,2.7671,180.8,180.76,5.93941466]
[1730201508962,5.93941466,180.82,180.76,5.93941466]
[1730201509168,7.14761466,180.83,180.76,5.93941466]
[1730201510373,2.7667,180.82,180.76,5.93941466]
[1730201510569,7.14761466,180.83,180.76,5.93941466]
[1730201510976,9.91421466,180.83,180.76,8.70681466]
[1730201512082,2.7668,180.82,180.67,1.237]
[1730201512276,7.14761466,180.83,180.76,5.93941466]
[1730201512472,1.2082,180.83,180.74,4.1]
[1730201512969,5.78097097,180.92,180.74,4.1]
[1730201513179,2.5279,181.02,180.91,9.30275169]
[1730201513379,13.68275169,181.01,180.88,9.30275169]
[1730201513581,16.38575102,181.01,180.88,9.30275169]
[1730201513773,2.7646,180.96,180.88,9.30275169]
[1730201514171,4.38,180.96,180.88,9.30275169]
[1730201514375,4.38,180.96,180.89,2.7656]
[1730201515177,4.38,180.96,180.85,9.30275169]
[1730201515477,13.68275169,180.96,180.83,9.30275169]
[1730201515778,1.2424,180.95,180.83,9.30275169]
[1730201515975,9.30275169,180.94,180.83,9.30275169]
[1730201517873,1.2424,180.95,180.85,9.30275169]
[1730201518077,4.38,180.93,180.85,9.30275169]
[1730201518275,4.38,180.93,180.83,9.30275169]
[1730201518580,1.2424,180.95,180.83,9.30275169]
[1730201518581,2.7649,180.94,180.83,9.30275169]
[1730201518982,4.38,180.93,180.83,9.30275169]
[1730201519183,4.38,180.92,180.86,2.7659]
[1730201520084,4.38,180.92,180.83,9.30275169]
[1730201520382,4.38,180.92,180.87,2.7659]
[1730201520970,2.765,180.93,180.87,2.7659]
[1730201521175,7.125,180.93,180.87,2.7659]
[1730201521473,7.125,180.93,180.83,9.30275169]
[1730201521474,2.7652,180.92,180.86,2.7659]
[1730201521677,5.5228,181.17,180.91,9.30275169]
[1730201521877,9.30275169,181.1,180.92,4.66]
[1730201522077,2.7634,181.04,180.96,12.06725169]
[1730201522285,2.7634,181.04,180.96,9.30275169]
[1730201522690,7.4234,181.04,180.96,9.30275169]
[1730201522890,7.4234,181.04,180.94,9.30275169]
[1730201523078,2.7636,181.03,180.94,9.30275169]
[1730201523583,2.7636,181.03,180.96,2.7644]
[1730201524180,2.7636,181.03,180.97,2.7644]
[1730201528084,4.66,181.02,180.97,2.7644]
[1730201528388,4.66,181.02,180.94,9.30275169]
[1730201528797,2.7635,181.03,180.94,9.30275169]
[1730201528996,7.4235,181.03,180.97,2.7642]
[1730201530692,2.7635,181.03,180.97,2.7642]
[1730201530894,2.7636,181.02,180.97,2.7642]
[1730201531082,5.9449,181.04,180.98,2.7642]
[1730201531288,8.7083,181.04,180.98,2.7642]
[1730201531487,5.9449,181.04,180.92,4.66]
[1730201531788,2.764,181.0,180.92,4.66]
[1730201532190,2.764,181.0,180.95,2.7646]
[1730201532997,4.66,181.02,180.92,4.66]
[1730201533188,1.2849,181.04,180.92,4.66]
[1730201533388,4.66,181.02,180.92,4.66]
[1730201533583,9.30275169,181.01,180.89,9.30275169]
[1730201533787,9.30275169,180.99,180.88,345.2504]
[1730201533998,2.7646,180.96,180.91,2.7652]
[1730201534199,4.66,180.96,180.88,1.2504]
[1730201534604,2.7646,180.96,180.91,2.7652]
[1730201535100,7.4246,180.96,180.91,2.7652]
[1730201535488,7.4246,180.96,180.88,1.2504]
[1730201535784,7.4246,180.96,180.92,2.7651]
[1730201536291,7.4246,180.96,180.91,2.7653]
[1730201537293,2.7647,180.95,180.91,2.7653]
[1730201537801,16.61,181.27,181.0,24.0]
[1730201537994,11.81115169,181.17,181.05,9.30275169]
[1730201538193,1.2485,181.16,181.03,9.30275169]
[1730201538692,5.3,181.15,181.03,9.30275169]
[1730201539289,5.3,181.15,181.05,2.7631]
[1730201539799,14.60275169,181.15,181.05,2.7631]
[1730201540093,14.60275169,181.15,181.02,5.3]
[1730201540299,14.60275169,181.15,181.01,11.83255169]
[1730201540495,20.170704,181.15,181.01,2.5298]
[1730201540699,20.170704,181.15,181.02,2.7634]
[1730201542198,14.870704,181.12,180.98,14.870704]
[1730201542397,14.870704,181.12,180.92,344.0]
[1730201542398,14.870704,181.12,180.93,2.5908]
[1730201542596,5.3,181.11,180.95,14.870704]
[1730201543102,14.870704,181.12,181.0,2.7639]
[1730201543305,5.3,181.11,181.0,2.7639]
[1730201544501,5.3,181.11,180.99,2.7639]
[1730201544816,5.3,181.11,180.95,14.870704]
[1730201545303,5.3,181.11,181.0,2.7638]
[1730201545702,5.3,181.11,180.95,14.870704]
[1730201545895,5.3,181.11,181.01,2.7637]
[1730201547097,5.3,181.11,180.94,349.3]
[1730201547298,14.870704,181.08,180.93,346.5908]
[1730201547496,3.8426,181.07,180.93,2.5908]
[1730201547698,5.3,181.06,180.93,2.5908]
[1730201548105,2.7638,181.01,180.96,2.7645]
[1730201548796,16.61,181.14,180.93,1.3016]
[1730201548797,5.7713038,181.15,181.0,14.870704]
[1730201549106,1.2212,181.15,181.0,14.870704]
[1730201549293,1.2212,181.15,181.01,1.1894]
[1730201549500,1.2212,181.15,181.02,14.870704]
[1730201549903,1.2212,181.15,181.01,2.4803]
[1730201550506,1.2212,181.15,181.03,2.7634]
[1730201550903,1.2212,181.15,181.01,2.4803]
[1730201551204,2.7625,181.1,181.04,2.7633]
[1730201551510,5.3,181.09,181.04,2.7633]
[1730201552710,5.3,181.09,181.01,2.4803]
[1730201553505,5.3,181.09,181.04,2.7633]
[1730201553903,8.0626,181.09,181.04,2.7633]
[1730201554106,16.61,181.33,181.08,14.870704]
[1730201554308,2.4868,181.27,181.14,14.870704]
[1730201554559,1.2862,181.27,181.2,2.7607]
[1730201554818,1.2862,181.27,181.16,14.870704]
[1730201555000,2.7605,181.23,181.17,2.7613]
[1730201555207,5.3,181.23,181.11,14.870704]
[1730201555711,14.870704,181.21,181.0,344.0]
[1730201555907,14.870704,181.21,181.03,14.870704]
[1730201556103,74.570704,181.21,181.03,14.870704]
[1730201556313,2.7616,181.15,181.09,2.7624]
[1730201556509,5.3,181.14,181.09,2.7624]
[1730201556713,5.3,181.14,181.03,358.870704]
[1730201557203,8.0619,181.14,181.03,358.870704]
[1730201557521,2.7621,181.12,181.03,358.870704]
[1730201557816,5.3,181.14,181.03,358.870704]
[1730201558021,5.3,181.14,181.05,2.763]
[1730201558022,2.7623,181.11,181.05,2.763]
[1730201558329,2.7623,181.11,181.03,358.870704]
[1730201558618,2.7626,181.09,181.04,2.7632]
[1730201558805,14.870704,181.17,181.03,344.0]
[1730201558806,5.3,181.08,181.03,344.0]
[1730201559610,5.3,181.08,181.03,358.870704]
[1730201559917,5.3,181.08,181.06,2.7629]
[1730201560213,5.3,181.08,181.03,358.870704]
[1730201560416,5.3,181.11,181.07,2.7627]
[1730201560616,5.3,181.11,181.03,358.870704]
[1730201561218,2.7617,181.15,181.06,14.870704]
[1730201561412,5.3,181.14,181.06,14.870704]
[1730201561613,5.3,181.13,181.06,14.870704]
[1730201561920,5.3,181.13,181.1,2.7624]
[1730201562316,5.3,181.12,181.1,2.7624]
[1730201563913,5.3,181.13,181.06,14.870704]
[1730201564108,5.3,181.13,181.1,2.7623]
[1730201564308,1.2248,181.19,181.09,14.870704]
[1730201564509,5.3,181.18,181.13,17.632504]
[1730201565215,2.7613,181.17,181.13,17.632504]
[1730201565810,5.3,181.18,181.13,17.632504]
[1730201566006,5.3,181.18,181.13,14.870704]
[1730201566718,8.0613,181.18,181.13,17.632604]
[1730201566922,5.3,181.18,181.09,14.870704]
[1730201568118,5.36,181.17,181.09,14.870704]
[1730201568622,5.36,181.17,181.13,2.7618]
[1730201568818,5.36,181.17,181.09,14.870704]
[1730201569016,2.7617,181.15,181.11,2.7621]
[1730201569321,2.7617,181.15,181.07,14.870704]
[1730201569322,5.36,181.17,181.07,14.870704]
[1730201569613,2.7617,181.15,181.1,2.7624]
[1730201569820,5.36,181.17,181.07,14.870704]
[1730201570318,2.7616,181.15,181.12,2.762]
[1730201570616,2.7616,181.15,181.07,14.870704]
[1730201570817,2.7616,181.15,181.11,2.7621]
[1730201571421,5.36,181.17,181.07,14.870704]
[1730201571717,5.36,181.17,181.12,2.7619]
[1730201573319,2.7616,181.15,181.12,2.7619]
[1730201573519,5.36,181.17,181.12,2.7619]
[1730201573717,5.36,181.17,181.11,2.7622]
[1730201573913,2.7617,181.15,181.11,2.7622]
[1730201574115,5.36,181.17,181.07,14.870704]
[1730201574324,5.36,181.17,181.07,2.7628]
[1730201574512,5.36,181.17,181.06,9.2895923]
[1730201574828,5.36,181.17,181.07,2.7627]
[1730201575117,2.762,181.13,181.06,9.2895923]
[1730201575317,5.36,181.12,181.08,2.7626]
[1730201576226,8.1221,181.12,181.08,2.7626]
[1730201577220,2.7621,181.12,181.08,2.7626]
[1730201577524,8.1221,181.12,181.09,2.7625]
[1730201578217,2.7618,181.14,181.1,2.7623]
[1730201578630,5.36,181.13,181.1,2.7623]
[1730201579130,5.36,181.13,181.11,2.7621]
[1730201580221,5.36,181.13,181.1,2.7623]
[1730201580421,5.36,181.13,181.08,14.86127157]
[1730201580622,5.36,181.13,181.05,14.86127157]
[1730201580821,5.36,181.13,181.03,344.0]
[1730201581222,2.7627,181.08,181.03,344.0]
[1730201581424,5.36,181.08,181.03,344.0]
[1730201582428,5.36,181.08,181.0,14.86127157]
[1730201582630,2.7635,181.03,181.0,2.7638]
[1730201583524,2.7632,181.05,180.97,14.86127157]
[1730201583728,5.36,181.08,181.0,14.86127157]
[1730201584534,2.7632,181.05,181.01,2.7636]
[1730201584723,5.36,181.08,181.0,14.86127157]
[1730201585026,2.7632,181.05,180.99,2.7639]
[1730201585228,5.36,181.08,180.97,14.86127157]
[1730201585631,5.36,181.08,180.99,2.7641]
[1730201585821,5.36,181.08,180.97,14.86127157]
[1730201586219,2.7632,181.05,181.0,2.7638]
[1730201586427,2.7632,181.05,180.97,14.86127157]
[1730201587125,2.7632,181.05,181.01,2.7637]
[1730201587327,14.86127157,181.07,180.92,344.0]
[1730201587531,2.5668,181.04,180.9,14.86127157]
[1730201587726,6.5946,181.03,180.9,14.86127157]
[1730201588324,2.7645,180.97,180.92,2.7651]
[1730201588524,8.1245,180.97,180.92,2.7651]
[1730201588827,5.36,180.97,180.9,14.86127157]
[1730201589025,5.36,180.97,180.93,2.7649]
[1730201589927,5.36,180.97,180.92,2.7651]
[1730201590123,5.36,180.97,180.9,14.86127157]
[1730201590725,5.36,180.97,180.93,2.7648]
[1730201591241,5.36,180.97,180.9,14.86127157]
[1730201591730,2.7647,180.95,180.9,14.86127157]
[1730201591933,5.36,180.97,180.9,14.86127157]
[1730201592133,5.36,180.97,180.89,2.7655]
[1730201592433,2.7649,180.94,180.87,16.16637157]
[1730201592635,2.7649,180.94,180.9,2.7654]
[1730201593425,5.36,180.97,180.87,14.86127157]
[1730201593730,2.5601,180.96,180.86,2.766]
[1730201593934,2.5601,180.96,180.85,344.0]
[1730201594130,2.7655,180.9,180.85,346.7661]
[1730201594321,5.36,180.9,180.8,14.86127157]
[1730201594720,2.7658,180.88,180.83,2.7664]
[1730201595039,5.36,180.9,180.8,14.86127157]
[1730201596128,2.7658,180.88,180.82,2.7665]
[1730201596627,8.1255,180.9,180.8,14.86127157]
[1730201596831,5.36,180.9,180.83,14.86127157]
[1730201597543,8.1255,180.9,180.85,2.7662]
[1730201598429,5.36,180.9,180.85,2.7662]
[1730201599234,61.0341,180.95,180.83,14.86127157]
[1730201599437,5.2,180.94,180.83,14.86127157]
[1730201599634,61.0341,180.95,180.86,2.7659]
[1730201599635,2.7653,180.92,180.86,2.7659]
[1730201599836,5.2,180.93,180.86,2.7659]
[1730201600235,2.7653,180.91,180.83,14.86127157]
[1730201600538,5.2,180.9,180.86,9.30051993]
[1730201601026,5.2,180.9,180.87,2.7659]
[1730201603333,5.2,180.9,180.86,9.30051993]
[1730201603334,61.0341,180.95,180.86,9.30051993]